[Event "WYCC 2018 G16"]
[Site "Halkidiki"]
[Date "2018.10.29"]
[Round "10"]
[White "Michielsen, Lies"]
[Black "Hoesley, Aria"]
[Result "0-1"]
[ECO "A80"]
[WhiteElo "1398"]
[BlackElo "1831"]
[Annotator "NA"]
[PlyCount "90"]
[EventDate "2018.10.20"]
[EventType "swiss"]
[EventCountry "GRE"]
[SourceTitle "playchess.com"]
[Source "ChessBase"]
[SourceQuality "1"]
[TimeControl "40/5400+30:1800+30"]

1. d4 {[%emt 0:00:00]} f5 {[%emt 0:00:00]} 2. Nf3 {[%emt 0:01:29]} Nf6 {[%emt 0:00:01]} 3. c4 {[%emt 0:01:52]} e6 {[%emt 0:00:27]} 4. e3 {[%emt 0:01:57]} Be7 {[%emt 0:02:01]} 5. Nc3 {[%emt 0:03:19]} O-O {[%emt 0:01:23]} 6. Be2 {[%emt 0:03:24]} b6 {[%emt 0:05:31]} 7. O-O {[%emt 0:04:20]} Bb7 {[%emt 0:00:34]} 8. b3 {[%emt 0:01:38]} d5 {[%emt 0:06:16]} 9. Bb2 {[%emt 0:07:47]} Na6 {[%emt 0:10:46]} 10. cxd5 {[%emt 0:02:42]} exd5 {[%emt 0:01:01]} 11. Qc2 {[%emt 0:03:10]} Ne4 {[%emt 0:01:35]} 12. Nxd5 {[%emt 0:00:54]} Bd6 {[%emt 0:10:58]} 13. Nc3 {[%emt 0:09:16]} Nb4 {[%emt 0:01:30]} 14. Bc4+ {[%emt 0:04:15]} Kh8 {[%emt 0:00:19]} 15. Qe2 {[%emt 0:02:09]} a6 {[%emt 0:02:56]} 16. Rac1 {[%emt 0:06:51]} b5 {[%emt 0:02:46]} 17. Be6 {[%emt 0:08:58]} Ng5 {[%emt 0:04:59]} 18. Nxg5 {[%emt 0:03:30]} Qxg5 {[%emt 0:00:03]} 19. f4 {[%emt 0:03:44]} Qg6 {[%emt 0:02:28]} 20. d5 {[%emt 0:02:29]} c6 {[%emt 0:03:32]} 21. Rfd1 {[%emt 0:01:35]} cxd5 {[%emt 0:03:06]} 22. Bxd5 {[%emt 0:00:49]} Nxd5 {[%emt 0:00:13]} 23. Nxd5 {[%emt 0:00:16]} Rad8 {[%emt 0:01:25]} 24. Rd2 {[%emt 0:06:59]} Rde8 {[%emt 0:05:51]} 25. Qf2 {[%emt 0:03:34]} Bb8 {[%emt 0:04:18]} 26. Re1 {[%emt 0:06:22]} a5 {[%emt 0:07:05]} 27. Bc3 {[%emt 0:01:49]} b4 {[%emt 0:00:22]} 28. Bb2 {[%emt 0:00:11]} Qe6 {[%emt 0:02:01]} 29. Red1 {[%emt 0:02:12]} h6 {[%emt 0:04:04]} 30. a3 {[%emt 0:01:19]} Ba7 {[%emt 0:03:40]} 31. Qg3 {[%emt 0:01:52]} Rf7 {[%emt 0:00:28]} 32. Kf2 {[%emt 0:00:35]} bxa3 {[%emt 0:04:26]} 33. Bxa3 {[%emt 0:00:15]} Bxd5 {[%emt 0:00:12]} 34. Rxd5 {[%emt 0:00:18]} Bxe3+ {[%emt 0:00:19]} 35. Kf1 {[%emt 0:00:48]} Qa6+ {[%emt 0:05:23]} 36. R1d3 {[%emt 0:01:12]} Re6 {[%emt 0:04:14]} 37. b4 {[%emt 0:01:16]} axb4 {[%emt 0:00:30]} 38. Bxb4 {[%emt 0:00:03]} Rb7 {[%emt 0:01:02]} 39. Bc3 {[%emt 0:03:04]} Rb1+ {[%emt 0:00:58]} 40. Be1 {[%emt 0:00:00]} Bd2 {[%emt 0:00:00]} 41. Rd8+ {[%emt 0:04:08]} Kh7 {[%emt 0:00:51]} 42. R8d7 {[%emt 0:00:45]} Rbxe1+ {[%emt 0:01:01]} 43. Kf2 {[%emt 0:00:15]} R1e2+ {[%emt 0:00:40]} 44. Kf3 {[%emt 0:00:33]} Qc6+ {[%emt 0:00:15]} 45. R3d5 {[%emt 0:00:29]} R6e3# {[%emt 0:00:17]} 0-1

[Event "WYCC 2018 G16"]
[Site "Halkidiki"]
[Date "2018.10.30"]
[Round "11"]
[White "Muetsch, Annmarie"]
[Black "Berdnyk, Mariia"]
[Result "1-0"]
[ECO "C04"]
[WhiteElo "2206"]
[BlackElo "2179"]
[Annotator "ChessBase"]
[PlyCount "107"]
[EventDate "2018.10.20"]
[EventType "swiss"]
[EventCountry "GRE"]
[SourceTitle "playchess.com"]
[Source "ChessBase"]
[SourceQuality "1"]
[TimeControl "40/5400+30:1800+30"]

1. e4 {[%emt 0:00:00]} e6 {[%emt 0:00:00]} 2. d4 {[%emt 0:00:00]} d5 {[%emt 0:00:00]} 3. Nd2 {[%emt 0:00:00]} Nc6 {[%emt 0:00:00]} 4. Ngf3 {[%emt 0:00:48]} Nf6 {[%emt 0:00:00]} 5. e5 {[%emt 0:00:05]} Nd7 {[%emt 0:00:00]} 6. c4 {[%emt 0:00:21]} Be7 {[%emt 0:07:15]} 7. cxd5 {[%emt 0:04:45]} exd5 {[%emt 0:00:14]} 8. Bd3 {[%emt 0:02:15]} Nf8 {[%emt 0:05:24]} 9. h3 {[%emt 0:04:12]} Ne6 {[%emt 0:03:04]} 10. Nb3 {[%emt 0:20:22]} Bb4+ {[%emt 0:01:18]} 11. Bd2 {[%emt 0:04:41]} Nf4 {[%emt 0:05:18]} 12. Bf1 {[%emt 0:00:48]} Bf5 {[%emt 0:03:13]} 13. a3 {[%emt 0:00:34]} Bxd2+ {[%emt 0:01:07]} 14. Qxd2 {[%emt 0:00:07]} Ne6 {[%emt 0:04:08]} 15. Bb5 {[%emt 0:02:19]} O-O {[%emt 0:00:35]} 16. Bxc6 {[%emt 0:03:10]} bxc6 {[%emt 0:00:04]} 17. Rc1 {[%emt 0:00:23]} Qb8 {[%emt 0:03:34]} 18. Nc5 {[%emt 0:10:51]} Qb5 {[%emt 0:06:35]} 19. a4 {[%emt 0:06:30]} Qb6 {[%emt 0:02:41]} 20. Nd7 {[%emt 0:00:16]} Qa6 {[%emt 0:01:18]} 21. Nxf8 {[%emt 0:00:22]} Rxf8 {[%emt 0:00:08]} 22. Ng5 {[%emt 0:03:57]} Nd8 {[%emt 0:06:20]} 23. h4 {[%emt 0:04:48]} f6 {[%emt 0:01:35]} 24. Nf3 {[%emt 0:04:52]} Be4 {[%emt 0:03:44]} 25. Rc3 {[%emt 0:00:21]} Ne6 {[%emt 0:01:59]} 26. exf6 {[%emt 0:05:21]} Rxf6 {[%emt 0:03:26]} 27. Ne5 {[%emt 0:01:09]} Qxa4 {[%emt 0:11:24]} 28. f3 {[%emt 0:07:57]} Bg6 {[%emt 0:02:23]} 29. Nxc6 {[%emt 0:00:56]} Kh8 {[%emt 0:10:47]} 30. Kf2 {[%emt 0:00:16]} Be8 {[%emt 0:02:04]} 31. Rhc1 {[%emt 0:02:11]} h6 {[%emt 0:02:05]} 32. b4 {[%emt 0:01:45]} Nf4 {[%emt 0:01:04]} 33. Ne5 {[%emt 0:03:53]} Qxb4 {[%emt 0:01:54]} 34. R3c2 {[%emt 0:00:39]} c5 {[%emt 0:05:09]} 35. Qxb4 {[%emt 0:00:36]} cxb4 {[%emt 0:00:04]} 36. Rc8 {[%emt 0:02:07]} Re6 {[%emt 0:02:19]} 37. Ra1 {[%emt 0:01:38]} a6 {[%emt 0:00:35]} 38. g3 {[%emt 0:00:52]} Nh5 {[%emt 0:02:01]} 39. Nd3 {[%emt 0:00:31]} Kh7 {[%emt 0:00:58]} 40. Nc5 {[%emt 0:00:00]} Re7 {[%emt 0:00:00]} 41. Rxa6 {[%emt 0:03:09]} Bb5 {[%emt 0:01:55]} 42. Ra2 {[%emt 0:03:18]} Bc4 {[%emt 0:00:16]} 43. Rb2 {[%emt 0:00:15]} Ra7 {[%emt 0:00:03]} 44. Rb8 {[%emt 0:01:28]} Ra1 {[%emt 0:01:10]} 45. R8xb4 {[%emt 0:00:38]} Rd1 {[%emt 0:00:18]} 46. Nb3 {[%emt 0:02:00]} g5 {[%emt 0:02:01]} 47. hxg5 {[%emt 0:00:22]} hxg5 {[%emt 0:00:03]} 48. Nd2 {[%emt 0:01:52]} Bd3 {[%emt 0:00:24]} 49. Rb7+ {[%emt 0:00:55]} Kg6 {[%emt 0:00:51]} 50. Ke3 {[%emt 0:02:08]} Bc4 {[%emt 0:00:16]} 51. R2b6+ {[%emt 0:00:28]} Nf6 {[%emt 0:00:07]} 52. Nxc4 {[%emt 0:00:25]} dxc4 {[%emt 0:00:05]} 53. Rc7 {[%emt 0:01:49]} g4 {[%emt 0:00:23]} 54. Rxc4 {[%emt 0:03:25] Ng8} 1-0

[Event "WYCC 2018 G16"]
[Site "Halkidiki"]
[Date "2018.10.30"]
[Round "11"]
[White "Makhija, Aashna"]
[Black "Ouellet, Maili-Jade"]
[Result "1-0"]
[ECO "B16"]
[WhiteElo "2197"]
[BlackElo "2122"]
[Annotator "NA"]
[PlyCount "91"]
[EventDate "2018.10.20"]
[EventType "swiss"]
[EventCountry "GRE"]
[SourceTitle "playchess.com"]
[Source "ChessBase"]
[SourceQuality "1"]
[TimeControl "40/5400+30:1800+30"]

1. e4 {[%emt 0:00:00]} c6 {[%emt 0:00:00]} 2. d4 {[%emt 0:00:00]} d5 {[%emt 0:00:00]} 3. Nd2 {[%emt 0:00:09]} dxe4 {[%emt 0:00:00]} 4. Nxe4 {[%emt 0:00:09]} Nf6 {[%emt 0:00:00]} 5. Nxf6+ {[%emt 0:00:18]} gxf6 {[%emt 0:00:00]} 6. Nf3 {[%emt 0:01:18]} Bf5 {[%emt 0:00:09]} 7. Bd3 {[%emt 0:01:10]} Bg6 {[%emt 0:00:12]} 8. O-O {[%emt 0:04:41]} e6 {[%emt 0:00:25]} 9. c4 {[%emt 0:05:47] B16: Caro-Kann: Bronstein-Larsen Variation} Bd6 {[%emt 0:01:43]} (9... Na6 10. Be3 Qd7 11. Qd2 Nc7 12. Rfd1 O-O-O 13. b4 Bg7 14. Be2 Kb8 15. a4 e5 16. b5 c5 17. d5 Qd6 18. Nh4 f5 19. f4 Rhe8 {½-½ (19) Hracek,Z (2600)-Cvek,R (2499) Karlovy Vary 2005}) 10. Re1 {[%emt 0:14:53]} Nd7 $146 {[%emt 0:07:12]} ({Predecessor:} 10... Be7 11. Bf4 Nd7 12. Nh4 Nb6 13. Nxg6 hxg6 14. Bg3 Qxd4 15. Rxe6 Qd7 16. Re3 O-O-O {1-0 (36) Pekun,C (2164)-Ovesen,K (1918) Rogaska Slatina 2009}) 11. d5 {[%emt 0:08:16]} Bxd3 {[%emt 0:22:17]} 12. Qxd3 {[%emt 0:01:00]} cxd5 {[%emt 0:07:03]} 13. cxd5 {[%emt 0:02:42]} Nb6 {[%emt 0:01:21]} 14. g3 {[%emt 0:14:52]} Be7 {[%emt 0:08:19]} 15. Qb5+ {[%emt 0:03:14]} Qd7 {[%emt 0:00:24]} 16. Qxd7+ {[%emt 0:00:34]} Kxd7 {[%emt 0:00:14]} 17. dxe6+ {[%emt 0:00:15]} fxe6 {[%emt 0:00:10]} 18. Bf4 {[%emt 0:08:57]} Nd5 {[%emt 0:13:45]} 19. Rad1 {[%emt 0:02:05]} Bd6 {[%emt 0:06:42]} 20. Bxd6 {[%emt 0:05:39]} Kxd6 {[%emt 0:00:09]} 21. Nd4 {[%emt 0:05:24]} Rhe8 {[%emt 0:01:06]} 22. Nb5+ {[%emt 0:01:41]} Kc6 {[%emt 0:02:18]} 23. Nd4+ {[%emt 0:02:01]} Kd6 {[%emt 0:00:06]} 24. Rd2 {[%emt 0:02:20]} a6 {[%emt 0:02:19]} 25. Rde2 {[%emt 0:02:54]} Nc7 {[%emt 0:01:40]} 26. Re4 {[%emt 0:02:46]} Rad8 {[%emt 0:01:28]} 27. f4 {[%emt 0:04:08]} Kd5 {[%emt 0:02:57]} 28. Nc2 {[%emt 0:02:02]} Kd6 {[%emt 0:03:01]} 29. Nd4 {[%emt 0:02:48]} Kd5 {[%emt 0:00:11]} 30. Nb3 {[%emt 0:01:01]} Kd6 {[%emt 0:04:10]} 31. Na5 {[%emt 0:00:16]} Rb8 {[%emt 0:01:06]} 32. Rd1+ {[%emt 0:00:54]} Ke7 {[%emt 0:06:03]} 33. f5 {[%emt 0:01:35]} Kf7 {[%emt 0:03:59]} 34. Rh4 {[%emt 0:00:29]} Nd5 {[%emt 0:02:44]} 35. fxe6+ {[%emt 0:00:24]} Rxe6 {[%emt 0:03:04]} 36. Rxd5 {[%emt 0:00:23]} Re2 {[%emt 0:00:16]} 37. Rd7+ {[%emt 0:00:39]} Kg6 {[%emt 0:01:07]} 38. Rhxh7 {[%emt 0:00:35]} Rc8 {[%emt 0:00:37]} 39. Rdg7+ {[%emt 0:00:36]} Kf5 {[%emt 0:00:09]} 40. Rh5+ {[%emt 0:00:00]} Ke6 {[%emt 0:00:00]} 41. Nb3 {[%emt 0:05:37]} Rxb2 {[%emt 0:04:38]} 42. Rxb7 {[%emt 0:05:10]} Rxa2 {[%emt 0:02:07]} 43. Nc5+ {[%emt 0:03:24]} Kd6 {[%emt 0:00:23]} 44. Rb6+ $18 {[%emt 0:01:05]} Kc7 {[%emt 0:01:05]} 45. Rxa6 {[%emt 0:03:29]} Rb2 {[%emt 0:03:58]} 46. Rxf6 {[%emt 0:02:54]} 1-0

[Event "WYCC 2018 G16"]
[Site "Halkidiki"]
[Date "2018.10.30"]
[Round "11"]
[White "Hilario, Aleyla"]
[Black "Goltseva, Ekaterina"]
[Result "0-1"]
[ECO "D37"]
[WhiteElo "2175"]
[BlackElo "2169"]
[Annotator "NA"]
[PlyCount "96"]
[EventDate "2018.10.20"]
[EventType "swiss"]
[EventCountry "GRE"]
[SourceTitle "playchess.com"]
[Source "ChessBase"]
[SourceQuality "1"]
[TimeControl "40/5400+30:1800+30"]

1. d4 {[%emt 0:05:42]} Nf6 {[%emt 0:00:00]} 2. c4 {[%emt 0:00:04]} e6 {[%emt 0:00:00]} 3. Nf3 {[%emt 0:00:06]} d5 {[%emt 0:00:06]} 4. Nc3 {[%emt 0:00:40]} dxc4 {[%emt 0:00:38]} 5. e4 {[%emt 0:01:32]} b5 {[%emt 0:01:43]} 6. e5 {[%emt 0:01:46]} Nd5 {[%emt 0:00:35]} 7. Nxb5 {[%emt 0:00:54]} Nb6 {[%emt 0:00:31]} 8. Be3 {[%emt 0:10:53]} Be7 {[%emt 0:16:20]} 9. Be2 {[%emt 0:00:28]} O-O {[%emt 0:00:24]} 10. O-O $14 {[%emt 0:00:17]} Nc6 {[%emt 0:00:13]} 11. a4 {[%emt 0:00:17]} Na5 {[%emt 0:07:41]} 12. Nd2 {[%emt 0:00:21]} Bb7 {[%emt 0:03:46]} 13. Qc2 {[%emt 0:09:22]} Qd7 {[%emt 0:04:39]} 14. Qc3 {[%emt 0:02:39]} Nd5 {[%emt 0:01:27]} 15. Qc1 {[%emt 0:03:31]} c5 {[%emt 0:08:46]} 16. Bxc4 {[%emt 0:14:27]} Nxe3 {[%emt 0:02:17]} 17. fxe3 {[%emt 0:00:06]} a6 {[%emt 0:00:32]} 18. Nd6 {[%emt 0:04:06]} Bxd6 {[%emt 0:02:00]} 19. exd6 {[%emt 0:00:13]} cxd4 {[%emt 0:01:55]} 20. exd4 {[%emt 0:01:02]} Qc6 {[%emt 0:12:11]} 21. Rf2 {[%emt 0:03:13]} Rac8 {[%emt 0:00:34]} 22. b3 {[%emt 0:00:01]} Qxd6 {[%emt 0:00:23]} 23. Qc3 {[%emt 0:01:02]} Nc6 {[%emt 0:00:28]} 24. Ne4 {[%emt 0:07:44]} Qc7 {[%emt 0:16:33]} 25. Ng5 {[%emt 0:05:39]} Qe7 {[%emt 0:02:37]} 26. Qe3 {[%emt 0:03:02]} Nxd4 {[%emt 0:07:43]} 27. Nxf7 {[%emt 0:00:42]} Rxf7 {[%emt 0:01:39]} 28. Rxf7 {[%emt 0:01:16]} Qxf7 {[%emt 0:00:07]} 29. Qxd4 {[%emt 0:00:03]} Qg6 {[%emt 0:01:50]} 30. Qd2 {[%emt 0:00:02]} Re8 {[%emt 0:01:12]} 31. Re1 {[%emt 0:00:33]} Kh8 {[%emt 0:01:43]} 32. Qf2 {[%emt 0:03:31]} h6 {[%emt 0:01:16]} 33. Re3 {[%emt 0:02:14]} Qb1+ {[%emt 0:01:36]} 34. Re1 {[%emt 0:00:37]} Qg6 {[%emt 0:00:13]} 35. h3 {[%emt 0:00:32]} Bd5 {[%emt 0:02:39]} 36. Bxa6 {[%emt 0:00:52]} Bxb3 {[%emt 0:00:14]} 37. Qe3 {[%emt 0:02:51]} Bd5 {[%emt 0:00:39]} 38. Qd2 {[%emt 0:00:57]} Ra8 {[%emt 0:01:05]} 39. Bb5 {[%emt 0:00:20]} Rc8 {[%emt 0:00:25]} 40. Bd3 {[%emt 0:00:00]} Qg3 {[%emt 0:00:00]} 41. Bf1 {[%emt 0:03:21]} Rc3 {[%emt 0:11:34]} 42. Ra1 {[%emt 0:00:19]} Qe5 {[%emt 0:03:47]} 43. Qf2 {[%emt 0:03:20]} Rxh3 {[%emt 0:03:30]} 44. gxh3 {[%emt 0:02:58]} Qxa1 {[%emt 0:00:08]} 45. a5 {[%emt 0:00:23]} Bc4 {[%emt 0:00:59]} 46. Qf8+ {[%emt 0:00:46]} Kh7 {[%emt 0:00:04]} 47. Kg2 {[%emt 0:01:54]} Bxf1+ {[%emt 0:01:04]} 48. Qxf1 {[%emt 0:00:03]} Qxa5 0-1

[Event "WYCC 2018 G16"]
[Site "Halkidiki"]
[Date "2018.10.30"]
[Round "11"]
[White "Peycheva, Gergana"]
[Black "Xing, Ashley"]
[Result "1-0"]
[ECO "E47"]
[WhiteElo "2152"]
[BlackElo "1889"]
[Annotator "NA"]
[PlyCount "101"]
[EventDate "2018.10.20"]
[EventType "swiss"]
[EventCountry "GRE"]
[SourceTitle "playchess.com"]
[Source "ChessBase"]
[SourceQuality "1"]
[TimeControl "40/5400+30:1800+30"]

1. d4 {[%emt 0:00:00]} Nf6 {[%emt 0:00:00]} 2. c4 {[%emt 0:00:10]} e6 {[%emt 0:00:00]} 3. Nc3 {[%emt 0:00:37]} Bb4 {[%emt 0:00:00]} 4. e3 {[%emt 0:00:54]} O-O {[%emt 0:00:06]} 5. Bd3 {[%emt 0:02:08]} c5 {[%emt 0:00:10]} 6. Nge2 {[%emt 0:02:46]} d5 {[%emt 0:00:13]} 7. cxd5 {[%emt 0:01:42]} cxd4 {[%emt 0:00:28]} 8. exd4 {[%emt 0:01:31]} Nxd5 {[%emt 0:02:04]} 9. O-O {[%emt 0:03:17]} b6 {[%emt 0:09:12]} 10. Nxd5 {[%emt 0:06:23]} Qxd5 {[%emt 0:18:56]} 11. Qc2 {[%emt 0:09:02] E48: Nimzoindisch (Moderne Variante)} f5 {[%emt 0:04:22]} 12. Bc4 $146 {[%emt 0:03:37]} ({Vorgänger:} 12. Be3 Bd6 13. f3 Ba6 14. Nc3 Bxd3 15. Qxd3 Qb7 16. Qc4 Qc8 17. Qxc8 Rxc8 18. Rfe1 Bb4 {½-½ (32) Weisshaupt,R (2100)-Ripperger,R (1950) Bad Woerishofen 1996}) 12... Qd7 {[%emt 0:13:03]} 13. Qb3 {[%emt 0:08:39]} Bd6 {[%emt 0:03:24]} 14. Re1 {[%emt 0:04:26]} Kh8 {[%emt 0:04:42]} 15. Nf4 {[%emt 0:08:11]} Bxf4 {[%emt 0:06:02]} 16. Bxf4 {[%emt 0:00:09]} Qxd4 {[%emt 0:00:44]} (16... Nc6 $16) 17. Be5 {[%emt 0:00:30]} Qg4 {[%emt 0:06:55]} 18. h3 {[%emt 0:01:29]} Qg6 {[%emt 0:02:23]} 19. Qf3 {[%emt 0:01:09]} Bd7 {[%emt 0:02:07]} 20. Bxe6 {[%emt 0:07:54]} Bc6 {[%emt 0:02:36]} 21. Bd5 {[%emt 0:00:19]} Bxd5 {[%emt 0:02:56]} 22. Qxd5 {[%emt 0:00:15]} Na6 {[%emt 0:02:14]} 23. Re3 {[%emt 0:02:10]} f4 {[%emt 0:07:26]} 24. Bxf4 {[%emt 0:04:41]} Nb4 {[%emt 0:01:24]} 25. Qc4 {[%emt 0:01:07]} Nc2 {[%emt 0:02:14]} 26. Rg3 {[%emt 0:00:49]} Qf6 {[%emt 0:01:49]} 27. Qxc2 {[%emt 0:01:13]} Qxf4 {[%emt 0:00:07]} 28. Rd1 {[%emt 0:03:01]} Rac8 {[%emt 0:02:28]} 29. Qe2 {[%emt 0:01:23]} Rce8 {[%emt 0:01:54]} 30. Qd2 {[%emt 0:02:04]} Qf5 {[%emt 0:01:23]} 31. Qd4 {[%emt 0:02:03]} Rf7 {[%emt 0:01:08]} 32. Rdd3 {[%emt 0:02:15]} h6 {[%emt 0:00:53]} 33. Rgf3 {[%emt 0:02:04]} Qg6 {[%emt 0:00:46]} 34. Rxf7 {[%emt 0:00:43]} Qxf7 {[%emt 0:00:05]} 35. a3 {[%emt 0:00:44]} Qc7 {[%emt 0:01:05]} 36. Re3 {[%emt 0:05:19]} Rd8 {[%emt 0:00:54]} 37. Qb4 {[%emt 0:00:27]} Qd6 {[%emt 0:00:48]} 38. Re8+ {[%emt 0:00:59]} Kh7 {[%emt 0:00:24]} 39. Qe4+ {[%emt 0:00:16]} g6 {[%emt 0:00:54]} 40. Rxd8 {[%emt 0:00:00]} Qxd8 {[%emt 0:00:00]} 41. Qb7+ {[%emt 0:08:29]} Kg8 {[%emt 0:00:57]} 42. Qxa7 {[%emt 0:00:14]} Qd1+ $18 {[%emt 0:00:52]} 43. Kh2 {[%emt 0:02:43]} Qd6+ {[%emt 0:00:19]} 44. g3 {[%emt 0:00:06]} Qd4 {[%emt 0:01:00]} 45. Qb8+ {[%emt 0:00:18]} Kg7 {[%emt 0:00:58]} 46. Qc7+ {[%emt 0:00:10]} Kg8 {[%emt 0:00:55]} 47. Qc2 {[%emt 0:00:14]} Kf7 {[%emt 0:01:02]} 48. b3 {[%emt 0:02:08]} Kg7 {[%emt 0:01:05]} 49. h4 {[%emt 0:01:14]} h5 {[%emt 0:00:44]} 50. a4 {[%emt 0:00:45]} Kh8 {[%emt 0:00:35]} 51. Qe2 {[%emt 0:00:35]} 1-0

[Event "WYCC 2018 G16"]
[Site "Halkidiki"]
[Date "2018.10.30"]
[Round "11"]
[White "Cervantes Landeiro, Thalia"]
[Black "Bach, Ngoc Thuy Duong"]
[Result "1-0"]
[ECO "D30"]
[WhiteElo "2129"]
[BlackElo "2161"]
[Annotator "NA"]
[PlyCount "85"]
[EventDate "2018.10.20"]
[EventType "swiss"]
[EventCountry "GRE"]
[SourceTitle "playchess.com"]
[Source "ChessBase"]
[SourceQuality "1"]
[TimeControl "40/5400+30:1800+30"]

1. d4 {[%emt 0:00:00]} d5 {[%emt 0:00:00]} 2. c4 {[%emt 0:00:00]} e6 {[%emt 0:00:00]} 3. Nf3 {[%emt 0:00:00]} c6 {[%emt 0:00:00]} 4. Nbd2 {[%emt 0:00:02]} Nf6 {[%emt 0:00:10]} 5. Qc2 {[%emt 0:00:31]} Nbd7 {[%emt 0:01:41]} 6. g3 {[%emt 0:00:47]} Bd6 {[%emt 0:03:05]} 7. Bg2 {[%emt 0:00:12]} O-O {[%emt 0:01:52]} 8. O-O {[%emt 0:00:07]} Re8 {[%emt 0:00:43]} 9. Rd1 {[%emt 0:15:00]} Qc7 {[%emt 0:15:32]} 10. e4 {[%emt 0:03:17]} dxe4 {[%emt 0:00:46]} 11. Nxe4 {[%emt 0:00:12]} Nxe4 {[%emt 0:02:19]} 12. Qxe4 {[%emt 0:00:09]} c5 {[%emt 0:02:21]} 13. dxc5 {[%emt 0:07:51]} Nxc5 {[%emt 0:00:34]} 14. Qd4 {[%emt 0:00:22]} Bf8 {[%emt 0:01:16]} 15. Bf4 {[%emt 0:02:29]} Qb6 {[%emt 0:01:49]} 16. Rab1 {[%emt 0:04:45]} Nd7 {[%emt 0:02:28]} 17. Qxb6 {[%emt 0:02:08]} Nxb6 {[%emt 0:00:06]} 18. b3 {[%emt 0:00:27]} a5 {[%emt 0:03:13]} 19. Ne5 {[%emt 0:10:10]} f6 {[%emt 0:05:01]} 20. Be3 {[%emt 0:02:30]} Ra6 {[%emt 0:03:12]} 21. Nd3 {[%emt 0:02:26]} Nd7 {[%emt 0:01:12]} 22. c5 {[%emt 0:03:23]} e5 {[%emt 0:04:09]} 23. Bd5+ {[%emt 0:01:27]} Kh8 {[%emt 0:02:46]} 24. Bf7 {[%emt 0:10:38]} Rae6 {[%emt 0:02:37]} 25. a3 {[%emt 0:04:30]} R6e7 {[%emt 0:02:08]} 26. Bxe8 {[%emt 0:00:37]} Rxe8 {[%emt 0:00:05]} 27. b4 {[%emt 0:00:11]} axb4 {[%emt 0:03:14]} 28. axb4 {[%emt 0:00:10]} e4 {[%emt 0:00:23]} 29. Nf4 {[%emt 0:00:58]} Ne5 {[%emt 0:01:39]} 30. b5 {[%emt 0:08:50]} Kg8 {[%emt 0:03:05]} 31. h3 {[%emt 0:03:01]} Kf7 {[%emt 0:01:04]} 32. Kg2 {[%emt 0:01:01]} g5 {[%emt 0:02:11]} 33. Nd5 {[%emt 0:00:29]} Be6 {[%emt 0:06:29]} 34. Nc7 {[%emt 0:04:27]} Rc8 {[%emt 0:01:21]} 35. Nxe6 {[%emt 0:03:40]} Kxe6 {[%emt 0:00:09]} 36. c6 {[%emt 0:00:08]} bxc6 {[%emt 0:01:59]} 37. b6 {[%emt 0:00:32]} c5 {[%emt 0:00:05]} 38. b7 {[%emt 0:00:10]} Rb8 {[%emt 0:00:05]} 39. Rb6+ {[%emt 0:00:20]} Kf7 {[%emt 0:00:10]} 40. Ra1 {[%emt 0:00:00]} Nd7 {[%emt 0:00:00]} 41. Ra8 {[%emt 0:04:03]} Be7 {[%emt 0:04:42]} 42. Rxb8 {[%emt 0:00:52]} Nxb8 {[%emt 0:00:04]} 43. Rb5 {[%emt 0:00:14]} 1-0

[Event "WYCC 2018 G16"]
[Site "Halkidiki"]
[Date "2018.10.30"]
[Round "11"]
[White "Schulze, Lara"]
[Black "Beydullayeva, Govhar"]
[Result "1/2-1/2"]
[ECO "C07"]
[WhiteElo "2122"]
[BlackElo "2202"]
[Annotator "NA"]
[PlyCount "69"]
[EventDate "2018.10.20"]
[EventType "swiss"]
[EventCountry "GRE"]
[SourceTitle "playchess.com"]
[Source "ChessBase"]
[SourceQuality "1"]
[TimeControl "40/5400+30:1800+30"]

1. e4 {[%emt 0:00:00]} e6 {[%emt 0:00:00]} 2. d4 {[%emt 0:00:00]} d5 {[%emt 0:00:00]} 3. Nd2 {[%emt 0:00:00]} c5 {[%emt 0:00:09]} 4. exd5 {[%emt 0:00:00]} Qxd5 {[%emt 0:00:06]} 5. dxc5 {[%emt 0:00:00]} Bxc5 {[%emt 0:00:16]} 6. Ngf3 {[%emt 0:00:14]} Nf6 {[%emt 0:00:43]} 7. Bc4 {[%emt 0:00:30]} Qd8 {[%emt 0:00:08]} 8. O-O {[%emt 0:01:28]} Nc6 {[%emt 0:15:14]} 9. Qe2 {[%emt 0:04:18]} Qc7 {[%emt 0:04:47] C07: French Tarrasch: 3...c5, 4 Ngf3 and 4 exd5 Qxd5} 10. Re1 $146 {[%emt 0:24:28]} ({Predecessor:} 10. Ne4 Be7 11. Rd1 h6 12. Nxf6+ Bxf6 13. Qe4 Ne5 14. Bb5+ Bd7 15. Nxe5 Bxb5 16. Bf4 Bc6 {½-½ (73) Naiditsch,A (2689)-Hou,Y (2588) Khanty-Mansiysk 2009}) 10... Bd7 {[%emt 0:02:43]} 11. a4 {[%emt 0:05:13]} h6 {[%emt 0:05:02]} 12. c3 {[%emt 0:03:39]} Bd6 {[%emt 0:02:31]} 13. Bd3 {[%emt 0:03:40]} O-O {[%emt 0:20:10]} 14. Nc4 {[%emt 0:05:24]} e5 {[%emt 0:07:59]} (14... Rfe8 $11 {remains equal.}) 15. Qd1 {[%emt 0:15:31]} Ne8 {[%emt 0:05:46]} 16. Nxd6 {[%emt 0:04:01]} Qxd6 {[%emt 0:00:47]} 17. b4 {[%emt 0:03:22]} Bg4 {[%emt 0:10:35]} 18. b5 {[%emt 0:04:09]} Ne7 {[%emt 0:01:24]} 19. Ba3 {[%emt 0:01:29]} Qc7 {[%emt 0:04:38]} 20. h3 {[%emt 0:02:28]} Bxf3 {[%emt 0:04:37]} 21. Qxf3 {[%emt 0:00:02]} Nf6 {[%emt 0:03:40]} 22. Qe2 {[%emt 0:05:52]} e4 {[%emt 0:07:11]} 23. Bxe4 Rfe8 {[%emt 0:00:18]} 24. Qf3 {[%emt 0:06:36]} Nxe4 {[%emt 0:00:25]} 25. Rxe4 {[%emt 0:05:46]} Ng6 {[%emt 0:00:02]} 26. Rae1 {[%emt 0:00:31]} Rxe4 {[%emt 0:00:03]} 27. Rxe4 {[%emt 0:00:33]} a6 {[%emt 0:00:11]} 28. c4 {[%emt 0:01:55]} axb5 {[%emt 0:00:06]} 29. cxb5 {[%emt 0:01:48]} Qc2 {[%emt 0:00:21]} 30. Bd6 {[%emt 0:01:22]} Rd8 {[%emt 0:03:48]} 31. Bb4 {[%emt 0:00:40]} Qxa4 {[%emt 0:00:38]} 32. b6 {[%emt 0:00:22]} Qc6 {[%emt 0:00:53]} 33. Qe3 $15 {[%emt 0:00:20]} Ra8 {[%emt 0:00:30]} 34. h4 {[%emt 0:00:37]} h5 {[%emt 0:00:19]} 35. Bc5 {[%emt 0:00:35]} 1/2-1/2